fUSD/lending_fUSD_20241117
["ID","MTS","AMOUNT","RATE_DAILY","PERIOD"]
[342405606,1731801602286,152.23137768,8.19e-05,2]
[342405607,1731801636242,351.21,8.297e-05,2]
[342405608,1731801713787,1036.69,8.316e-05,2]
[342405609,1731801724720,200.0,8.316e-05,2]
[342405610,1731801745676,250.0,8.32e-05,2]
[342405611,1731801748377,250.0,8.319e-05,2]
[342405612,1731801783783,1994.42,8.28e-05,2]
[342405614,1731801886822,1500.0,8.276e-05,2]
[342405615,1731801889475,192.959,0.0002302,60]
[342405616,1731801931331,500.0,8.285e-05,2]
[342405618,1731801960610,1993.47,8.285e-05,2]
[342405619,1731802019917,250.0,8.269e-05,2]
[342405620,1731802032941,200.0,8.277e-05,2]
[342405622,1731802048313,-163.13,8.579e-05,2]
[342405623,1731802048335,-1503.70367785,8.765e-05,2]
[342405624,1731802087225,909.29,8.219e-05,2]
[342405631,1731802100836,266.0,0.00024,60]
[342405640,1731802157331,160.91,8.289e-05,2]
[342405641,1731802163114,-7682.94612583,8.765e-05,2]
[342405642,1731802163135,-336.00670793,8.765e-05,2]
[342405643,1731802163154,-1507.34702479,8.765e-05,2]
[342405644,1731802163178,-343.52,8.767e-05,2]
[342405645,1731802163198,-1335.86206353,8.767e-05,2]
[342405646,1731802163220,-181.11,8.85e-05,2]
[342405647,1731802163242,-779.12,8.932e-05,2]
[342405648,1731802163264,-779.12,8.935e-05,2]
[342405649,1731802163283,-779.12,8.937e-05,2]
[342405650,1731802163303,-779.12,8.939e-05,2]
[342405651,1731802163322,-222.0,8.942e-05,2]
[342405652,1731802163341,-222.0,8.942e-05,2]
[342405653,1731802163360,-222.0,8.942e-05,2]
[342405654,1731802163380,-222.0,8.942e-05,2]
[342405655,1731802163400,-779.12,8.942e-05,2]
[342405656,1731802163422,-222.0,8.944e-05,2]
[342405657,1731802163444,-779.12,8.944e-05,2]
[342405658,1731802163464,-779.12,8.946e-05,2]
[342405659,1731802163484,-779.12,8.949e-05,2]
[342405660,1731802163505,-779.12,8.951e-05,2]
[342405661,1731802163525,-426.19171568,8.953e-05,2]
[342405662,1731802169101,-222.0,8.942e-05,2]
[342405663,1731802169130,-352.92828432,8.953e-05,2]
[342405664,1731802169151,-779.12,8.956e-05,2]
[342405665,1731802169174,-779.12,8.958e-05,2]
[342405666,1731802169195,-779.12,8.961e-05,2]
[342405667,1731802169216,-779.12,8.963e-05,2]
[342405668,1731802169236,-779.12,8.965e-05,2]
[342405669,1731802169257,-779.12,8.968e-05,2]
[342405670,1731802169277,-779.12,8.97e-05,2]
[342405671,1731802169297,-150.0,8.972e-05,2]
[342405672,1731802169317,-779.12,8.972e-05,2]
[342405673,1731802169337,-779.12,8.975e-05,2]
[342405674,1731802169358,-779.12,8.977e-05,2]
[342405675,1731802169377,-500.0,9e-05,2]
[342405676,1731802169397,-307.51,9e-05,2]
[342405677,1731802169417,-150.0,9e-05,2]
[342405678,1731802175750,222.0,8.972e-05,2]
[342405682,1731802192877,1000.0,8.927e-05,2]
[342405683,1731802203092,500.0,9e-05,2]
[342405684,1731802203858,500.0,9e-05,2]
[342405685,1731802204634,500.0,9e-05,2]
[342405686,1731802205374,500.0,9e-05,2]
[342405687,1731802206130,500.0,9e-05,2]
[342405688,1731802206890,500.0,9e-05,2]
[342405689,1731802207657,500.0,9e-05,2]
[342405690,1731802208418,500.0,9e-05,2]
[342405691,1731802209171,500.0,9e-05,2]
[342405692,1731802209929,500.0,9e-05,2]
[342405693,1731802210713,500.0,9e-05,2]
[342405694,1731802211810,500.0,9e-05,2]
[342405695,1731802212246,500.0,9e-05,2]
[342405696,1731802221135,808.41151313,8.914e-05,2]
[342405698,1731802231800,-945.135998,8.914e-05,2]
[342405699,1731802231811,-588.90327259,8.914e-05,2]
[342405700,1731802231856,-5118.54544878,8.914e-05,2]
[342405701,1731802231909,-16439.0037675,8.914e-05,2]
[342405702,1731802231919,-500.0,9e-05,2]
[342405703,1731802231929,-500.0,9e-05,2]
[342405704,1731802231939,-500.0,9e-05,2]
[342405705,1731802231948,-423.69,9e-05,2]
[342405706,1731802231958,-164.82,9.025e-05,2]
[342405707,1731802231970,-150.0,9.178e-05,2]
[342405708,1731802231980,-300.0,9.178e-05,2]
[342405709,1731802231989,-333.16,9.272e-05,2]
[342405710,1731802231999,-163.13,9.287e-05,2]
[342405711,1731802232010,-300.0,9.499e-05,2]
[342405712,1731802232019,-475.8038325,9.5e-05,2]
[342405713,1731802232047,-10117.1961675,9.5e-05,2]
[342405714,1731802232056,-200.0,9.6e-05,2]
[342405715,1731802232066,-150.0,9.633e-05,2]
[342405716,1731802232075,-263.6189,9.719e-05,2]
[342405717,1731802232086,-150.0,9.732e-05,2]
[342405718,1731802232096,-296.453207,9.732e-05,2]
[342405719,1731802232105,-2500.0,9.8e-05,2]
[342405720,1731802232115,-2560.50316987,9.8e-05,2]
[342405721,1731802232125,-28872.35571447,9.809e-05,2]
[342405722,1731802232134,-1334.882,9.819e-05,2]
[342405723,1731802232145,-563.0,9.819e-05,2]
[342405725,1731802232154,-628.0,9.83e-05,2]
[342405727,1731802232164,-1993.0,9.83e-05,2]
[342405728,1731802232174,-150.0,9.83e-05,2]
[342405730,1731802232183,-1925.0,9.83e-05,2]
[342405732,1731802232192,-560.0,9.83e-05,2]
[342405734,1731802232203,-3746.0,9.83e-05,2]
[342405736,1731802232213,-1260.0,9.83e-05,2]
[342405738,1731802232223,-814.0,9.83e-05,2]
[342405740,1731802232233,-920.0,9.83e-05,2]
[342405742,1731802232242,-3490.0,9.83e-05,2]
[342405744,1731802232252,-150.0,9.843e-05,2]
[342405746,1731802232262,-255.0,9.869e-05,2]
[342405748,1731802232271,-121905.5872,9.9e-05,2]
[342405750,1731802232280,-98255.1392,9.9e-05,2]
[342405752,1731802232290,-28051.2024,9.9e-05,2]
[342405754,1731802232300,-263.6214,9.9e-05,2]
[342405756,1731802232310,-13644.0,9.9e-05,2]
[342405758,1731802232320,-1160.0,9.9e-05,2]
[342405760,1731802232329,-150.0,9.9e-05,2]
[342405762,1731802232338,-5935.0,9.9e-05,2]
[342405764,1731802232347,-306.23,9.9e-05,2]
[342405766,1731802232356,-500.0,9.92e-05,2]
[342405768,1731802232365,-1308.129,9.962e-05,2]
[342405770,1731802232374,-176.954,9.962e-05,2]
[342405772,1731802232383,-500.0,9.973e-05,2]
[342405774,1731802232393,-374.54679166,9.973e-05,2]
[342405776,1731802232402,-500.0,9.973e-05,2]
[342405778,1731802232412,-1764.33152488,9.975e-05,2]
[342405779,1731802232421,-161.9651896,9.98e-05,2]
[342405781,1731802232430,-1646.90682422,9.98e-05,2]
[342405783,1731802232439,-1764.33152488,9.981e-05,2]
[342405785,1731802232448,-150.0,9.981e-05,2]
[342405786,1731802232458,-1764.33152488,9.985e-05,2]
[342405787,1731802232470,-462.4337565,9.988e-05,2]
[342405788,1731802232479,-216.4648473,9.988e-05,2]
[342405789,1731802232488,-500.3214543,9.988e-05,2]
[342405790,1731802232497,-722.6256938,9.988e-05,2]
[342405791,1731802232506,-641.8989641,9.988e-05,2]
[342405792,1731802232515,-361.3128466,9.988e-05,2]
[342405793,1731802232523,-1764.33152488,9.989e-05,2]
[342405794,1731802232532,-200.0,9.991e-05,2]
[342405795,1731802232541,-1764.33152488,9.991e-05,2]
[342405796,1731802232550,-223.2807345,9.992e-05,2]
[342405797,1731802232559,-279.0972899,9.993e-05,2]
[342405798,1731802232568,-334.9138453,9.993e-05,2]
[342405799,1731802232577,-216.4648473,9.993e-05,2]
[342405800,1731802232587,-216.4648473,9.993e-05,2]
[342405801,1731802232595,-625.3936879,9.993e-05,2]
[342405802,1731802232605,-750.4659215,9.993e-05,2]
[342405803,1731802232614,-615.4583466,9.993e-05,2]
[342405804,1731802232626,-589.017729,9.993e-05,2]
[342405805,1731802232635,-163.13,9.995e-05,2]
[342405806,1731802232644,-544.66898157,9.999e-05,2]
[342405807,1731802232653,-10338.29691174,0.0001,2]
[342405808,1731802232663,-3851.90736049,0.0001,2]
[342405809,1731802232672,-648366.56763319,0.0001,2]
[342405811,1731802237747,-414.9,0.0001,2]
[342405812,1731802237758,-1747.5,0.0001,2]
[342405813,1731802237905,-6496.37913676,0.0001,2]
[342405814,1731802237960,-184917.86380488,0.0001,2]
[342405815,1731802237971,-1699591.29741341,0.0001,2]
[342405816,1731802238004,-91.53731448,0.0001,2]
[342405817,1731802238016,-5073269.36904712,0.0001,2]
[342405818,1731802238045,-1325.4934896,0.0001,2]
[342405819,1731802238056,-560.919605,0.0001,2]
[342405820,1731802238067,-2375.17347888,0.0001,2]
[342405823,1731802238560,-543.91994482,0.0001,2]
[342405828,1731802239753,-19279.72896473,0.0001,2]
[342405829,1731802239765,-2720.07,0.0001,2]
[342405831,1731802239776,-626.87000002,0.0001,2]
[342405832,1731802239806,-588.76,0.0001,2]
[342405833,1731802239913,-427.34665757,0.0001,2]
[342405840,1731802242809,-4689.62090702,0.0001,2]
[342405841,1731802242919,-1733.69189762,0.0001,2]
[342405842,1731802242930,-5917.30442896,0.0001,2]
[342405843,1731802242978,-4195.5,0.0001,2]
[342405844,1731802243030,-734.48769146,0.0001,2]
[342405845,1731802243150,-13.90855619,0.0001,2]
[342405846,1731802243162,-1170.2658999,0.0001,2]
[342405858,1731802245824,-2601.0,0.0001,2]
[342405859,1731802245879,-2523.40241336,0.0001,2]
[342405860,1731802245889,-13894.09051292,0.0001,2]
[342405861,1731802245900,-32093.37005383,0.0001,2]
[342405862,1731802245911,-17947.5005,0.0001,2]
[342405863,1731802245923,-17082.53062654,0.0001,2]
[342405864,1731802245934,-608549.99998936,0.0001,2]
[342405865,1731802245949,-8752.46999999,0.0001,2]
[342405868,1731802412697,500.9,0.00024,60]
[342405869,1731802652828,694.864267,0.00024,60]
[342405870,1731802761956,863.82,8.219e-05,2]
[342405877,1731803245464,-200.0,8.677e-05,2]
[342405878,1731803245487,-52.78913855,8.702e-05,2]
[342405882,1731803354102,-215.1,8.612e-05,2]
[342405883,1731803354122,-416.49,8.612e-05,2]
[342405884,1731803354146,-734.11,8.625e-05,2]
[342405885,1731803354166,-250.0,8.667e-05,2]
[342405886,1731803354187,-112.03086145,8.702e-05,2]
[342405887,1731803354208,-300.0,8.722e-05,2]
[342405888,1731803354229,-300.0,8.722e-05,2]
[342405889,1731803354252,-23900.0,8.723e-05,2]
[342405901,1731803361238,-505.24,8.764e-05,2]
[342405902,1731803361260,-1000.0,8.792e-05,2]
[342405903,1731803361280,-2000.0,8.831e-05,2]
[342405904,1731803363091,-160.91,8.899e-05,2]
[342405905,1731803363114,-167.01,8.917e-05,2]
[342405906,1731803363134,-250.0,8.929e-05,2]
[342405907,1731803363158,-1049.36,8.954e-05,2]
[342405908,1731803367111,-150.0,8.999e-05,2]
[342405909,1731803367131,-500.0,9e-05,2]
[342405910,1731803367154,-500.0,9e-05,2]
[342405911,1731803367175,-500.0,9e-05,2]
[342405912,1731803367195,-500.0,9e-05,2]
[342405913,1731803367214,-500.0,9e-05,2]
[342405914,1731803367234,-747.369136,9e-05,2]
[342405915,1731803367260,-944.90282515,9e-05,2]
[342405916,1731803367280,-7919.87655548,9e-05,2]
[342405926,1731803395862,250.0,8.95e-05,2]
[342405936,1731803432003,-300.0,8.999e-05,2]
[342405937,1731803432017,-300.0,8.999e-05,2]
[342405938,1731803432027,-439.14973622,9e-05,2]
[342405939,1731803432068,-1295.06666959,9e-05,2]
[342405940,1731803432078,-150.0,9e-05,2]
[342405941,1731803432087,-1712.21626837,9e-05,2]
[342405942,1731803432096,-936.83,9.035e-05,2]
[342405943,1731803432106,-762.38,9.041e-05,2]
[342405944,1731803432116,-150.0,9.178e-05,2]
[342405945,1731803432125,-150.0,9.178e-05,2]
[342405946,1731803432135,-150.0,9.178e-05,2]
[342405947,1731803432144,-150.0,9.178e-05,2]
[342405948,1731803432154,-150.0,9.178e-05,2]
[342405949,1731803432163,-181.11,9.211e-05,2]
[342405950,1731803432177,-600.1,9.432e-05,2]
[342405951,1731803432188,-200.0,9.6e-05,2]
[342405952,1731803432198,-583.0,9.606e-05,2]
[342405953,1731803432208,-429.44159298,9.8e-05,2]
[342405954,1731803432229,-1906.48754834,9.8e-05,2]
[342405955,1731803432240,-1871.41825868,9.8e-05,2]
[342405956,1731803432251,-150.0,9.879e-05,2]
[342405957,1731803432260,-150.0,9.88e-05,2]
[342405958,1731803432270,-6373.21124132,9.88e-05,2]
[342405959,1731803432281,-19195.804235,9.88e-05,2]
[342405960,1731803432293,-5702.42723963,9.88e-05,2]
[342405961,1731803432304,-578.530001,9.88e-05,2]
[342405962,1731803432324,-58635.96120115,9.88e-05,2]
[342405963,1731803432334,-150.0,9.89e-05,2]
[342405964,1731803432343,-1000.0,9.891e-05,2]
[342405965,1731803432352,-78.03880006,9.899e-05,2]
[342405966,1731803432378,-341.96119994,9.899e-05,2]
[342405967,1731803432387,-2345.76723548,9.9e-05,2]
[342405968,1731803432398,-1500.48186916,9.9e-05,2]
[342405969,1731803432409,-1099.12248,9.9e-05,2]
[342405970,1731803432420,-736.85,9.9e-05,2]
[342405976,1731803437949,-3370.64831536,9.9e-05,2]
[342405977,1731803437959,-1513.864,9.9e-05,2]
[342405978,1731803437968,-105.46102903,9.9e-05,2]
[342405979,1731803437979,-296.69247097,9.9e-05,2]
[342405980,1731803437988,-778.59602128,9.9e-05,2]
[342405981,1731803438005,-4078.07597774,9.9e-05,2]
[342405982,1731803438119,-6030.2864594,9.9e-05,2]
[342405983,1731803438129,-200.0,9.959e-05,2]
[342405984,1731803438139,-200.0,9.959e-05,2]
[342405985,1731803438149,-200.0,9.969e-05,2]
[342405986,1731803438158,-200.0,9.97e-05,2]
[342405987,1731803438167,-500.0,9.973e-05,2]
[342405988,1731803438176,-160.57572253,9.973e-05,2]
[342405989,1731803438185,-570.18336043,9.973e-05,2]
[342405990,1731803438197,-1046.503,9.973e-05,2]
[342405991,1731803438206,-200.0,9.975e-05,2]
[342405992,1731803438216,-200.0,9.979e-05,2]
[342405993,1731803438225,-10700.0,9.99e-05,2]
[342405994,1731803438234,-331.5059017,9.992e-05,2]
[342405995,1731803438243,-1062.2738787,9.992e-05,2]
[342405996,1731803438252,-875.5381565,9.992e-05,2]
[342405997,1731803438261,-331.5059017,9.993e-05,2]
[342405998,1731803438271,-331.5059017,9.993e-05,2]
[342405999,1731803438280,-886.3444933,9.993e-05,2]
[342406000,1731803438289,-710.4151079,9.993e-05,2]
[342406001,1731803438298,-2179.12215561,9.999e-05,2]
[342406002,1731803438307,-17137.21013225,9.999e-05,2]
[342406003,1731803438316,-3794.12875009,0.0001,2]
[342406004,1731803438325,-190672.99329751,0.0001,2]
[342406005,1731803438334,-5388460.41658446,0.0001,2]
[342406006,1731803438354,-592.37453589,0.0001,2]
[342406007,1731803438365,-8011.28309462,0.0001,2]
[342406008,1731803438400,-838.12231162,0.0001,2]
[342406011,1731803440045,-9336.5629942,0.0001,2]
[342406012,1731803440103,-1007.44373529,0.0001,2]
[342406013,1731803440114,-601.14844496,0.0001,2]
[342406014,1731803440126,-1726.35999997,0.0001,2]
[342406016,1731803443016,-1954.2056175,0.0001,2]
[342406017,1731803443074,-2996.95197003,0.0001,2]
[342406018,1731803443086,-2998.34304151,0.0001,2]
[342406019,1731803443242,-2000.34382749,0.0001,2]
[342406020,1731803445891,-3070.49664855,0.0001,2]
[342406021,1731803445987,-13000.25518977,0.0001,2]
[342406022,1731803445998,-11316.09038625,0.0001,2]
[342406023,1731803446010,-2951.47949907,0.0001,2]
[342406024,1731803446044,-536.74208296,0.0001,2]
[342406025,1731803446104,-2247.956666,0.0001,2]
[342406026,1731803446117,-4580.02081437,0.0001,2]
[342406029,1731803488405,820.62,8.219e-05,2]
[342406032,1731803576779,5660.0,0.00024,60]
[342406035,1731803747252,150.0,6.822e-05,2]
[342406036,1731803909452,156.75,8.489e-05,2]
[342406037,1731803929491,200.0,8.497e-05,2]
[342406038,1731804066631,250.0,8.485e-05,2]
[342406039,1731804228361,3147.67,8.456e-05,2]
[342406040,1731804354630,416.45,8.474e-05,2]
[342406041,1731804354920,1000.0,8.474e-05,2]
[342406048,1731804375130,779.58,8.219e-05,2]
[342406049,1731804383881,250.0,8.472e-05,2]
[342406050,1731804431136,-236.21262872,8.504e-05,2]
[342406051,1731804431157,-250.0,8.504e-05,2]
[342406052,1731804431501,-500.0,8.512e-05,2]
[342406053,1731804431528,-13752.71981675,8.526e-05,2]
[342406054,1731804452105,-4104.33349539,8.526e-05,2]
[342406063,1731804553093,-319.92,8.542e-05,2]
[342406064,1731804553114,-150.0,8.603e-05,2]
[342406065,1731804553137,-2000.0,8.623e-05,2]
[342406066,1731804553158,-300.0,8.624e-05,2]
[342406067,1731804553179,-23900.0,8.625e-05,2]
[342406068,1731804553200,-2179.12215561,8.628e-05,2]
[342406069,1731804553221,-23809.13,8.694e-05,2]
[342406070,1731804553241,-159.49,8.929e-05,2]
[342406071,1731804553263,-159.49,8.933e-05,2]
[342406072,1731804553283,-159.49,8.936e-05,2]
[342406073,1731804553303,-159.49,8.94e-05,2]
[342406074,1731804553324,-159.49,8.944e-05,2]
[342406075,1731804553344,-159.49,8.947e-05,2]
[342406076,1731804553366,-159.49,8.951e-05,2]
[342406077,1731804553397,-159.49,8.955e-05,2]
[342406078,1731804553418,-159.49,8.959e-05,2]
[342406079,1731804553439,-159.49,8.962e-05,2]
[342406080,1731804553462,-159.49,8.966e-05,2]
[342406081,1731804553482,-159.49,8.97e-05,2]
[342406082,1731804553504,-159.49,8.974e-05,2]
[342406083,1731804560271,-150.0,8.999e-05,2]
[342406084,1731804560293,-500.0,9e-05,2]
[342406085,1731804560314,-500.0,9e-05,2]
[342406086,1731804560336,-500.0,9e-05,2]
[342406087,1731804560356,-500.0,9e-05,2]
[342406088,1731804560380,-500.0,9e-05,2]
[342406089,1731804560407,-500.0,9e-05,2]
[342406090,1731804560429,-500.0,9e-05,2]
[342406091,1731804560452,-500.0,9e-05,2]
[342406092,1731804560474,-500.0,9e-05,2]
[342406093,1731804560496,-500.0,9e-05,2]
[342406094,1731804560517,-500.0,9e-05,2]
[342406095,1731804560538,-500.0,9e-05,2]
[342406096,1731804560560,-500.0,9e-05,2]
[342406097,1731804560581,-500.0,9e-05,2]
[342406098,1731804560601,-199.90025517,9e-05,2]
[342406108,1731804601695,544.06,8.868e-05,2]
[342406122,1731804632202,-300.09974483,9e-05,2]
[342406123,1731804632211,-20.65789937,9e-05,2]
[342406124,1731804632223,-479.34210063,9e-05,2]
[342406125,1731804632235,-500.0,9e-05,2]
[342406126,1731804632244,-500.0,9e-05,2]
[342406127,1731804632253,-48.99369086,9e-05,2]
[342406128,1731804632264,-451.00630914,9e-05,2]
[342406129,1731804632273,-571.66,9e-05,2]
[342406130,1731804632283,-500.0,9e-05,2]
[342406131,1731804632293,-500.0,9e-05,2]
[342406132,1731804632302,-500.0,9e-05,2]
[342406133,1731804632311,-304.54,9e-05,2]
[342406134,1731804632320,-500.0,9e-05,2]
[342406135,1731804632329,-500.0,9e-05,2]
[342406136,1731804632340,-500.0,9e-05,2]
[342406137,1731804632349,-500.0,9e-05,2]
[342406138,1731804632358,-500.0,9e-05,2]
[342406139,1731804632367,-500.0,9e-05,2]
[342406140,1731804632376,-500.0,9e-05,2]
[342406141,1731804632386,-500.0,9e-05,2]
[342406142,1731804632395,-500.0,9e-05,2]
[342406143,1731804632408,-500.0,9e-05,2]
[342406144,1731804632417,-500.0,9e-05,2]
[342406145,1731804632426,-500.0,9e-05,2]
[342406146,1731804632438,-500.0,9e-05,2]
[342406147,1731804632448,-500.0,9e-05,2]
[342406148,1731804632458,-437.10818725,9e-05,2]
[342406153,1731804632581,-62.89181275,9e-05,2]
[342406154,1731804632591,-500.0,9e-05,2]
[342406155,1731804632600,-500.0,9e-05,2]
[342406156,1731804632609,-152.36,9e-05,2]
[342406157,1731804632618,-600.0,9e-05,3]
[342406158,1731804632627,-1300.0,9.1e-05,3]
[342406159,1731804632637,-1900.0,9.2e-05,3]
[342406160,1731804632646,-1464.10785967,9.3e-05,3]
[342406161,1731804632657,-493.8,9.3e-05,3]
[342406163,1731804638215,-642.09214033,9.3e-05,3]
[342406164,1731804638224,-150.0,9.378e-05,2]
[342406165,1731804638234,-2179.22297663,9.4e-05,3]
[342406166,1731804638312,-456.03705504,9.4e-05,3]
[342406167,1731804638343,-564.73996833,9.4e-05,3]
[342406168,1731804638352,-600.0,9.5e-05,3]
[342406169,1731804638361,-194.318127,9.517e-05,2]
[342406170,1731804638371,-1000.0,9.534e-05,2]
[342406171,1731804638380,-600.0,9.6e-05,3]
[342406172,1731804638393,-319.92,9.61e-05,2]
[342406173,1731804638402,-1518.79,9.67e-05,2]
[342406174,1731804638412,-3214.0,9.67e-05,2]
[342406175,1731804638421,-600.0,9.7e-05,3]
[342406176,1731804638430,-150.0,9.747e-05,2]
[342406177,1731804638441,-150.0,9.783e-05,2]
[342406178,1731804638458,-150.0,9.787e-05,2]
[342406179,1731804638469,-600.0,9.8e-05,3]
[342406180,1731804638479,-150.0,9.818e-05,2]
[342406181,1731804638488,-150.0,9.839e-05,2]
[342406182,1731804638498,-150.0,9.847e-05,2]
[342406183,1731804638507,-150.0,9.85e-05,2]
[342406184,1731804638517,-150.0,9.857e-05,2]
[342406185,1731804638526,-150.0,9.86e-05,2]
[342406186,1731804638535,-150.0,9.877e-05,2]
[342406187,1731804638544,-1645671.50763647,9.88e-05,2]
[342406188,1731804638554,-150.0,9.887e-05,2]
[342406189,1731804638564,-13208.2956,9.89e-05,2]
[342406190,1731804638574,-150.0,9.891e-05,2]
[342406191,1731804638583,-9282.9181,9.892e-05,2]
[342406192,1731804638592,-4643.5728,9.899e-05,2]
[342406193,1731804638601,-255.0,9.899e-05,2]
[342406194,1731804638610,-1000.0,9.9e-05,3]
[342406195,1731804638619,-221.68303414,9.906e-05,2]
[342406196,1731804638628,-150.0,9.91e-05,2]
[342406197,1731804638637,-1500.0,9.914e-05,2]
[342406198,1731804638646,-150.0,9.916e-05,2]
[342406199,1731804638656,-150.0,9.936e-05,2]
[342406200,1731804638665,-1046.503,9.941e-05,2]
[342406201,1731804638674,-150.0,9.943e-05,2]
[342406202,1731804638683,-200.0,9.96e-05,2]
[342406203,1731804638692,-200.0,9.968e-05,2]
[342406204,1731804638704,-160.57572253,9.973e-05,2]
[342406205,1731804638714,-500.0,9.973e-05,2]
[342406212,1731804638956,-500.0,9.973e-05,2]
[342406213,1731804638966,-544.06,9.976e-05,2]
[342406214,1731804638975,-200.0,9.976e-05,2]
[342406215,1731804638984,-150.0,9.983e-05,2]
[342406216,1731804638993,-200.0,9.988e-05,2]
[342406217,1731804639003,-276.5422231,9.989e-05,2]
[342406218,1731804639013,-1040.6849889,9.989e-05,2]
[342406219,1731804639022,-298.5276945,9.993e-05,2]
[342406220,1731804639032,-320.5131659,9.993e-05,2]
[342406221,1731804639041,-931.7603698,9.993e-05,2]
[342406222,1731804639050,-822.8357508,9.993e-05,2]
[342406223,1731804639060,-200.0,9.996e-05,2]
[342406224,1731804639069,-303.86164277,9.999e-05,2]
[342406225,1731804639078,-1212000.0,9.999e-05,2]
[342406226,1731804639087,-3794.12875009,0.0001,2]
[342406227,1731804639096,-190737.94875528,0.0001,2]
[342406228,1731804639105,-3062850.21131699,0.0001,2]
[342406229,1731804639117,-4043.69286745,0.0001,2]
[342406230,1731804639140,-483.7355491,0.0001,2]
[342406233,1731804640141,-549.673,0.0001,2]
[342406234,1731804640152,-2816.09736954,0.0001,2]
[342406236,1731804643252,-150.0,9.99e-05,2]
[342406237,1731804643262,-245.73801187,0.0001,2]
[342406239,1731804643415,-5677.71696597,0.0001,2]
[342406240,1731804643494,-147.49962966,0.0001,2]
[342406241,1731804643506,-368.294003,0.0001,2]
[342406242,1731804643518,-3228.3436335,0.0001,2]
[342406243,1731804643529,-1050.780001,0.0001,2]
[342406244,1731804643539,-717.09100369,0.0001,2]
[342406245,1731804643550,-4001.1410529,0.0001,2]
[342406246,1731804643588,-627.29674038,0.0001,2]
[342406258,1731804646097,-37379.581,0.0001,2]
[342406259,1731804646155,-5477.0001,0.0001,2]
[342406260,1731804646166,-5850.706984,0.0001,2]
[342406261,1731804646178,-29015.2487124,0.0001,2]
[342406262,1731804646310,-357.48753025,0.0001,2]
[342406263,1731804646324,-8173.61985497,0.0001,2]
[342406264,1731804646335,-3683.95076635,0.0001,2]
[342406265,1731804670874,300.0,8.9e-05,2]
[342406269,1731805038002,740.6,8.219e-05,2]
[342406270,1731805049998,2700.0,0.00024,60]
[342406282,1731805641131,-300.0,8.601e-05,2]
[342406283,1731805641152,-250.0,8.601e-05,2]
[342406284,1731805641172,-555.75802613,8.601e-05,2]
[342406285,1731805641192,-250.0,8.622e-05,2]
[342406286,1731805641214,-473.56,8.636e-05,2]
[342406287,1731805641234,-165.38,8.665e-05,2]
[342406288,1731805641256,-300.0,8.688e-05,2]
[342406289,1731805641277,-14434.64744696,8.689e-05,2]
[342406291,1731805746136,-5827.46154716,8.689e-05,2]
[342406292,1731805766115,-3637.89100588,8.689e-05,2]
[342406293,1731805766137,-300.0,8.692e-05,2]
[342406294,1731805766157,-367.84150232,8.692e-05,2]
[342406295,1731805766179,-234.96,8.693e-05,2]
[342406296,1731805766200,-1000.0,8.832e-05,2]
[342406297,1731805766220,-250.0,8.838e-05,2]
[342406304,1731805773093,-617.22,8.949e-05,2]
[342406305,1731805773116,-150.0,8.999e-05,2]
[342406306,1731805773138,-150.0,9e-05,2]
[342406307,1731805773163,-500.0,9e-05,2]
[342406308,1731805773185,-500.0,9e-05,2]
[342406309,1731805773206,-500.0,9e-05,2]
[342406310,1731805773227,-500.0,9e-05,2]
[342406311,1731805773247,-471.29781765,9e-05,2]
[342406319,1731805800223,250.0,8.793e-05,2]
[342406320,1731805831029,308.61,8.797e-05,2]
[342406328,1731805832371,-28.70218235,9e-05,2]
[342406329,1731805832380,-500.0,9e-05,2]
[342406330,1731805832389,-500.0,9e-05,2]
[342406331,1731805832398,-487.36781765,9e-05,2]
[342406332,1731805832412,-12.63218235,9e-05,2]